[Event "Klatovy Open-C 2024"]
[Site "Klatovy"]
[Date "2024.06.30"]
[Round "2.9"]
[White "Berka, Lubos"]
[Black "Danko, Jiri"]
[Result "1-0"]
[ECO "C27"]
[WhiteElo "1835"]
[BlackElo "1954"]
[Annotator "RC"]
[PlyCount "51"]
[EventDate "2024.06.21"]
[EventType "swiss"]
[EventCountry "CZE"]
[SourceTitle "playchess.com"]
[Source "ChessBase"]
[SourceQuality "1"]
[TimeControl "40/7200:0"]

1. e4 {[%emt 0:00:00]} e5 {[%emt 0:00:00]} 2. Nc3 {[%emt 0:00:00]} Nf6 {[%emt 0:00:00]} 3. Bc4 {[%emt 0:00:00]} c6 {[%emt 0:02:04]} 4. d3 {[%emt 0:01:00]} d5 {[%emt 0:01:48]} 5. exd5 {[%emt 0:00:00]} cxd5 {[%emt 0:00:00]} 6. Bb5+ {[%emt 0:00:00]} Bd7 {[%emt 0:03:34]} 7. Bxd7+ {[%emt 0:00:00]} Nbxd7 {[%emt 0:01:07]} 8. Bd2 {[%emt 0:05:42]} Rc8 {[%emt 0:01:18]} 9. Nf3 {[%emt 0:01:58]} Bd6 {[%emt 0:00:06]} 10. O-O {[%emt 0:01:51]} h6 {[%emt 0:02:47]} 11. Nh4 {[%emt 0:02:57]} g6 {[%emt 0:16:42]} 12. f4 {[%emt 0:10:47]} Bc5+ {[%emt 0:21:39]} 13. Kh1 {[%emt 0:00:02]} exf4 {[%emt 0:08:00]} 14. Re1+ {[%emt 0:05:35]} Kf8 {[%emt 0:00:04]} 15. Qf3 {[%emt 0:04:22]} Nh5 {[%emt 0:11:47]} 16. g3 {[%emt 0:11:18]} Nb6 {[%emt 0:13:02]} 17. Ne2 {[%emt 0:15:09]} Bd6 {[%emt 0:08:00]} 18. Nd4 {[%emt 0:03:07]} Qg5 {[%emt 0:01:43]} 19. Ne6+ {[%emt 0:02:53]} fxe6 {[%emt 0:00:00]} 20. Rxe6 {[%emt 0:00:00]} Nf6 {[%emt 0:08:39]} 21. Rxd6 {[%emt 0:01:14]} Kf7 {[%emt 0:05:45]} 22. Bxf4 {[%emt 0:10:40]} Qh5 {[%emt 0:00:00]} 23. Qxh5 {[%emt 0:04:15]} gxh5 {[%emt 0:03:51]} 24. Be5 {[%emt 0:00:34]} Rc6 {[%emt 0:00:45]} 25. Bxf6 {[%emt 0:02:34]} Rxd6 {[%emt 0:00:28]} 26. Bxh8 {[%emt 0:00:00]} 1-0

[Event "Klatovy Open-C 2024"]
[Site "Klatovy"]
[Date "2024.06.30"]
[Round "2.10"]
[White "Ondrejat, Miroslav"]
[Black "Novy, Jaroslav"]
[Result "1/2-1/2"]
[ECO "A23"]
[WhiteElo "1940"]
[BlackElo "1654"]
[Annotator "RC"]
[PlyCount "31"]
[EventDate "2024.06.21"]
[EventType "swiss"]
[EventCountry "CZE"]
[SourceTitle "playchess.com"]
[Source "ChessBase"]
[SourceQuality "1"]
[TimeControl "40/7200:0"]

1. c4 {[%emt 0:00:00]} e5 {[%emt 0:00:00]} 2. Nc3 {[%emt 0:00:00]} Nf6 {[%emt 0:00:00]} 3. g3 {[%emt 0:00:00]} c6 {[%emt 0:00:00]} 4. Nf3 {[%emt 0:00:00]} e4 {[%emt 0:00:56]} 5. Nd4 {[%emt 0:00:00]} d5 {[%emt 0:00:00]} 6. cxd5 {[%emt 0:03:27]} cxd5 {[%emt 0:00:00]} 7. e3 {[%emt 0:00:28]} Bc5 {[%emt 0:17:17]} 8. Nb3 {[%emt 0:02:20]} Bb4 {[%emt 0:00:00]} 9. d4 {[%emt 0:10:53]} O-O {[%emt 0:00:33]} 10. Bd2 {[%emt 0:00:00]} Nc6 {[%emt 0:09:52]} 11. h3 {[%emt 0:05:14]} a5 {[%emt 0:24:09]} 12. a3 {[%emt 0:09:12]} Bxc3 {[%emt 0:01:32]} 13. Bxc3 {[%emt 0:02:24]} b6 {[%emt 0:03:17]} 14. Bb5 {[%emt 0:03:31]} Bd7 {[%emt 0:00:00]} 15. Qe2 {[%emt 0:01:47]} Na7 {[%emt 0:02:13]} 16. Bxd7 {[%emt 0:01:07]} 1/2-1/2

[Event "Klatovy Open-C 2024"]
[Site "Klatovy"]
[Date "2024.07.01"]
[Round "3.1"]
[White "Hlavac, Rudolf"]
[Black "Zahorbensky, Jaroslav"]
[Result "1/2-1/2"]
[ECO "B06"]
[WhiteElo "1927"]
[BlackElo "2032"]
[Annotator "TA"]
[PlyCount "100"]
[EventDate "2024.06.21"]
[EventType "swiss"]
[EventCountry "CZE"]
[SourceTitle "playchess.com"]
[Source "ChessBase"]
[SourceQuality "1"]
[TimeControl "40/7200:0"]

{[%evp 9,100,88,83,72,62,73,66,51,59,63,63,67,53,65,77,57,61,50,54,56,52,27,30,22,51,54,37,20,80,72,124,0,0,0,33,38,72,76,74,72,156,72,95,89,93,88,90,9,0,0,0,0,0,-26,-26,-20,-20,-40,-52,-69,-15,-15,-16,-24,-6,-22,0,0,0,0,0,0,0,0,0,0,0,0,0,0,0,0,0,0,0,0,0,0,0,0,0,0,0]} 1. e4 {[%emt 0:00:00]} g6 {[%emt 0:00:00]} 2. d4 {[%emt 0:00:00]} Nf6 {[%emt 0:00:00][%cal Bg8f6,Bf6h5,Bh5g7][%mdl 32]} 3. Nc3 {[%emt 0:00:00]} d5 {[%emt 0:00:00]} 4. Bd3 {[%emt 0:01:57]} c6 {[%emt 0:00:19]} 5. e5 {[%emt 0:08:44]} Nh5 {[%emt 0:02:18]} 6. h3 {[%emt 0:03:32]} Ng7 {[%emt 0:01:44]} 7. Nf3 {[%emt 0:03:19]} Bf5 {[%emt 0:00:36]} 8. O-O {[%emt 0:00:48] White is slightly better.} Bxd3 {[%emt 0:07:23]} 9. Qxd3 {[%emt 0:00:15]} e6 {[%emt 0:00:14]} 10. Nd1 {[%emt 0:04:47] White is more active.} Be7 {[%emt 0:00:36]} 11. Ne3 {[%emt 0:01:52]} Nd7 {[%emt 0:04:47]} 12. Bd2 {[%emt 0:04:03]} a5 {[%emt 0:12:51]} 13. a4 {[%emt 0:01:13]} Qb6 {[%emt 0:00:52]} 14. b3 {[%emt 0:09:59]} Qa6 {[%emt 0:01:28]} 15. Qc3 {[%emt 0:00:38]} O-O {[%emt 0:02:13]} 16. Qb2 {[%emt 0:01:20]} f5 {[%emt 0:06:05]} 17. exf6 {[%emt 0:06:20]} Nxf6 {[%emt 0:00:00]} 18. Ng4 {[%emt 0:01:50]} Ne4 {[%emt 0:00:28]} (18... Nxg4 $11 {remains equal.} 19. hxg4 Rxf3 20. gxf3 Qe2) 19. Bh6 $16 {[%emt 0:05:11]} Rf5 {[%emt 0:07:34]} (19... Rxf3 $142 20. gxf3 Ng5) 20. Bxg7 {[%emt 0:01:31]} ({White should play} 20. Rae1 $16) 20... Kxg7 $11 {[%emt 0:00:00]} 21. Qc1 {[%emt 0:02:20]} Rh5 {[%emt 0:04:09]} 22. Qe3 {[%emt 0:04:05]} Bb4 {[%emt 0:05:18] Against Nd2} 23. Rad1 {[%emt 0:02:49]} Re8 {[%emt 0:01:35]} 24. Nfe5 {[%emt 0:04:37]} c5 {[%emt 0:14:19] [#]} ({Black should try} 24... Bd6) 25. Nd3 {[%emt 0:04:15] A dynamic duo of knights.} (25. Nd7 $142 $1) 25... Qb6 $16 {[%emt 0:00:54]} 26. dxc5 {[%emt 0:02:09]} Bxc5 {[%emt 0:00:00]} 27. Nxc5 {[%emt 0:00:29]} Qxc5 {[%emt 0:00:00] [#]} 28. Qxc5 {[%emt 0:02:32]} (28. Rd4 $1 $16) 28... Nxc5 $11 {[%emt 0:00:00]} 29. Rfe1 {[%emt 0:01:29]} Rf5 {[%emt 0:01:07]} 30. f3 {[%emt 0:01:59]} h5 {[%emt 0:00:48]} 31. Ne5 {[%emt 0:03:16]} Kf6 {[%emt 0:00:17]} 32. Nd3 {[%emt 0:00:31]} Rc8 {[%emt 0:02:35]} 33. Nxc5 {[%emt 0:00:03]} Rxc5 {[%emt 0:00:00][%mdl 4096] Endgame. KRR-KRR} 34. Re2 {[%emt 0:00:05]} e5 {[%emt 0:02:35]} (34... Re5 $15 35. Rde1 Rxe2 36. Rxe2 d4) 35. Rd3 {[%emt 0:03:26]} h4 {[%emt 0:04:04]} 36. Kf2 {[%emt 0:00:12]} d4 {[%emt 0:01:28]} 37. Ke1 {[%emt 0:00:00] The position is equal.} Rg5 {[%emt 0:04:48]} 38. f4 {[%emt 0:01:23]} exf4 {[%emt 0:00:05] White must now prevent ...Rce5.} 39. Rxd4 {[%emt 0:00:00]} Rgf5 {[%emt 0:00:54]} 40. Rd6+ {[%emt 0:00:11]} Kg5 {[%emt 0:00:00]} 41. Ree6 {[%emt 2:02:08]} Rfe5+ {[%emt 2:01:25]} 42. Rxe5+ {[%emt 0:00:00]} Rxe5+ {[%emt 0:00:00] KR-KR} 43. Kf2 {[%emt 0:00:00]} b5 {[%emt 0:01:25]} 44. Rb6 {[%emt 0:24:42]} bxa4 45. bxa4 Rc5 {[%emt 0:22:46]} 46. Rb5 {[%emt 0:00:00]} Rxb5 47. axb5 {Threatening mate with b6.} a4 {[%emt 0:00:00]} 48. b6 {[%emt 0:00:00] White threatens b7 and mate.} a3 49. b7 a2 50. b8=Q {[%emt 0:00:00]} (50. b8=B a1=Q (50... a1=B $2 {is the wrong capture.} 51. Kf3 $18) 51. Ke2 Qg1 52. Kd2 Qxg2+ 53. Kc3 Qxh3+ 54. Kd4 Qd7+ 55. Ke4 Qb7+ 56. Kd3 Qxb8 57. Kd4 h3 58. Kd5 h2 59. Kd4 h1=Q (59... h1=R {is a self mate.} 60. Kd3 Rd1+ 61. Kc4 Qc7+ 62. Kb3 Rb1+ 63. Ka2 Qxc2+ 64. Ka3 Qb3#) 60. Kc5 Qc7+ 61. Kb4 Qb1+ 62. Ka4 Qa7#) 50... a1=Q {Prevents Qe5+.   Weighted Error Value: White=0.17 (very precise) /Black=0.16 (very precise) .  Mistake:       	White=3     	Black=4      Inaccurate:     	White=1     	Black=3      OK:         	White=15    	Black=15     Best:        	---       	Black=4} 1/2-1/2

[Event "Klatovy Open-C 2024"]
[Site "Klatovy"]
[Date "2024.07.01"]
[Round "3.3"]
[White "Pokora, Lubomir"]
[Black "Kopta, Pavel"]
[Result "0-1"]
[ECO "B50"]
[WhiteElo "1857"]
[BlackElo "2193"]
[Annotator "TA"]
[PlyCount "80"]
[EventDate "2024.06.21"]
[EventType "swiss"]
[EventCountry "CZE"]
[SourceTitle "playchess.com"]
[Source "ChessBase"]
[SourceQuality "1"]
[TimeControl "40/7200:0"]

{[%evp 13,80,0,12,1,10,-11,0,-19,-13,-10,9,-33,-20,-21,-16,-29,4,-47,-33,-69,-48,-106,-52,-102,-98,-106,-99,-83,-97,-130,-71,-68,-59,-87,-72,-75,0,-227,-227,-254,-270,-320,-318,-496,-335,-347,-347,-351,-285,-522,-489,-493,-469,-507,-387,-863,-679,-1029,-999,-1022,-1007,-1794,-1727,-1844,-1826,-1617,-1431,-1883,-1691]} 1. e4 {[%emt 0:00:00]} c5 {[%emt 0:00:00]} 2. Nf3 {[%emt 0:00:00]} d6 {[%emt 0:00:00]} 3. c3 {[%emt 0:00:00]} Nf6 {[%emt 0:00:12]} 4. h3 {[%emt 0:00:00]} g6 {[%emt 0:02:01]} 5. Bd3 {[%emt 0:00:00]} Bg7 {[%emt 0:02:07]} 6. Bc2 {[%emt 0:00:03]} O-O {[%emt 0:02:41]} 7. O-O {[%emt 0:01:09]} e5 {[%emt 0:07:56]} 8. d3 {[%emt 0:05:01]} Nc6 {[%emt 0:02:18]} 9. Nbd2 {[%emt 0:07:32]} Rb8 {[%emt 0:07:09]} 10. a4 {[%emt 0:01:24] The position is equal.} d5 {[%emt 0:01:37]} 11. Re1 {[%emt 0:01:20]} Re8 {[%emt 0:00:36]} 12. Nf1 {[%emt 0:02:17]} h6 {[%emt 0:09:35]} 13. Ng3 {[%emt 0:02:41]} Be6 {[%emt 0:06:16]} 14. Bd2 {[%emt 0:05:04]} Rc8 {[%emt 0:05:37]} 15. Re2 {[%emt 0:10:03]} (15. a5 $11) 15... Kh7 {[%emt 0:04:28]} 16. Rb1 {[%emt 0:06:01]} c4 {[%emt 0:04:42] White must now prevent ...cxd3.} 17. Be1 {[%emt 0:13:04] [#]} (17. Re3 $15) 17... Qb6 {[%emt 0:08:37]} (17... cxd3 $1 $17 18. Bxd3 Qc7 19. exd5 Nxd5 (19... Bxd5 20. Bc2 $15)) 18. b4 {[%emt 0:03:07]} (18. dxc4 $15 dxc4 19. Rd2) 18... cxd3 $17 {[%emt 0:04:14] Black is more active.} 19. Bxd3 {[%emt 0:03:52]} dxe4 {[%emt 0:00:00]} 20. Nxe4 {[%emt 0:01:23]} Nxe4 {[%emt 0:00:00]} 21. Bxe4 {[%emt 0:00:00]} Bc4 {[%emt 0:00:34]} (21... Qc7 $142 22. Rd2 Ne7) 22. Rd2 {[%emt 0:03:17]} f5 {[%emt 0:03:46]} 23. Bd5 {[%emt 0:02:41]} Bxd5 {[%emt 0:00:12]} 24. Rxd5 {[%emt 0:00:00]} e4 {[%emt 0:00:35]} (24... Red8 $17 25. c4 e4) 25. Nh4 $2 {[%emt 0:03:04] Black continues to play with concentration.} (25. a5 $11 Qc7 26. Rd7) 25... Ne5 $19 {[%emt 0:00:22]} 26. Rb5 {[%emt 0:11:00]} Qf6 {[%emt 0:05:48]} 27. g3 {[%emt 0:07:32]} Rcd8 {[%emt 0:05:23]} 28. Qb3 {[%emt 0:03:29]} (28. Qe2 $142 b6 29. a5) 28... Qc6 {[%emt 0:01:36]} 29. Rc5 {[%emt 0:02:04]} Qd6 {[%emt 0:01:31]} 30. c4 {[%emt 0:01:07]} Qf6 {[%emt 0:04:23]} 31. a5 $2 {[%emt 0:05:10]} (31. Bc3 {was called for.} Rd3 32. Rxe5 Rxe5 33. Qb2) 31... Rd3 {[%emt 0:00:43]} 32. Qa4 {[%emt 0:00:00]} Re7 {[%emt 0:01:36] And now ...f4 would win.} 33. Qc2 {[%emt 0:02:30]} Red7 {[%emt 0:02:14]} 34. Rc8 $2 {[%emt 0:01:34]} (34. Rd5 R7xd5 35. cxd5) 34... f4 {[%emt 0:02:07] [#] aiming for ...g5. Black is clearly winning.} 35. c5 {[%emt 0:00:39]} Rf7 {[%emt 0:01:45] Hoping for ...fxg3.} 36. Qe2 {[%emt 0:01:44]} e3 {[%emt 0:03:29]} 37. gxf4 {[%emt 0:02:39]} Qxh4 {[%emt 0:04:56]} 38. fxe5 {[%emt 0:00:00]} Qg5+ {[%emt 0:00:45]} 39. Qg4 {[%emt 0:00:39]} Qxe5 {[%emt 0:00:15] ( -> ...exf2+)} 40. Qc4 {[%emt 0:00:11]} Qf5 {[%emt 0:00:14] Weighted Error Value: White=1.15/Black=0.27 (precise) .  Loses game:     	White=1     	---        Mistake:       	White=6     	Black=3      Inaccurate:     	White=5     	Black=2      OK:         	White=3     	Black=8      Best:        	White=1     	Black=1} 0-1

[Event "Klatovy Open-C 2024"]
[Site "Klatovy"]
[Date "2024.07.01"]
[Round "3.4"]
[White "Havelka, Petr"]
[Black "Mlynek, Petr"]
[Result "1/2-1/2"]
[ECO "D13"]
[WhiteElo "1851"]
[BlackElo "1969"]
[Annotator "RC"]
[PlyCount "111"]
[EventDate "2024.06.21"]
[EventType "swiss"]
[EventCountry "CZE"]
[SourceTitle "playchess.com"]
[Source "ChessBase"]
[SourceQuality "1"]
[TimeControl "40/7200:0"]

1. d4 {[%emt 0:00:00]} d5 {[%emt 0:00:00]} 2. c4 {[%emt 0:00:00]} c6 {[%emt 0:00:00]} 3. cxd5 {[%emt 0:00:00]} cxd5 {[%emt 0:00:00]} 4. Nc3 {[%emt 0:00:00]} Nc6 {[%emt 0:00:00]} 5. Nf3 {[%emt 0:00:00]} Nf6 {[%emt 0:00:00]} 6. Bf4 {[%emt 0:01:19]} e6 {[%emt 0:00:00]} 7. a3 {[%emt 0:02:51]} Be7 {[%emt 0:00:00]} 8. e3 {[%emt 0:00:00]} O-O {[%emt 0:00:00]} 9. Bd3 {[%emt 0:00:51]} Bd7 {[%emt 0:00:00]} 10. O-O {[%emt 0:00:17]} Nh5 {[%emt 0:00:00]} 11. Bg3 {[%emt 0:03:47]} Nxg3 {[%emt 0:00:00]} 12. hxg3 {[%emt 0:00:10]} f5 {[%emt 0:00:00]} 13. Rc1 {[%emt 0:07:12]} Rc8 {[%emt 0:00:49]} 14. Qb3 {[%emt 0:06:08]} Na5 {[%emt 0:00:06]} 15. Qa2 {[%emt 0:02:13]} Nc4 {[%emt 0:00:17]} 16. Bxc4 {[%emt 0:01:57]} dxc4 {[%emt 0:00:00]} 17. Ne5 {[%emt 0:00:12]} b5 {[%emt 0:00:00]} 18. Rfd1 {[%emt 0:01:49]} Bd6 {[%emt 0:02:18]} 19. f4 {[%emt 0:01:35]} Bxe5 {[%emt 0:02:56]} 20. dxe5 {[%emt 0:00:09]} Qe7 {[%emt 0:01:02]} 21. Rd6 {[%emt 0:01:28]} Bc6 {[%emt 0:00:09]} 22. Rcd1 {[%emt 0:00:49]} Rfd8 {[%emt 0:00:11]} 23. Ne2 {[%emt 0:01:42]} Bd5 {[%emt 0:00:16]} 24. Rxd8+ {[%emt 0:01:46]} Rxd8 {[%emt 0:00:00]} 25. Qa1 {[%emt 0:02:18]} Be4 {[%emt 0:04:17]} 26. Nc3 {[%emt 0:02:34]} a6 {[%emt 0:01:59]} 27. Nxe4 {[%emt 0:00:54]} fxe4 {[%emt 0:00:00]} 28. Qb1 {[%emt 0:00:00]} Rd3 {[%emt 0:00:00]} 29. Kf2 {[%emt 0:05:32]} Qc5 {[%emt 0:04:08]} 30. Qc1 {[%emt 0:02:10]} a5 {[%emt 0:00:17]} 31. b3 {[%emt 0:01:27]} c3 {[%emt 0:00:24]} 32. Ke2 {[%emt 0:01:41]} Qd5 {[%emt 0:01:24]} 33. g4 {[%emt 0:02:52]} b4 {[%emt 0:09:46]} 34. axb4 {[%emt 0:02:09]} Qb5 {[%emt 0:00:00]} 35. Kf2 {[%emt 0:01:55]} axb4 {[%emt 0:01:12]} 36. Qa1 {[%emt 0:06:04]} c2 {[%emt 0:12:51]} 37. Qa8+ {[%emt 0:04:37]} Kf7 {[%emt 0:00:00]} 38. Rc1 {[%emt 0:08:24]} Rd2+ {[%emt 0:01:01]} 39. Kg3 {[%emt 0:00:00]} Qd3 {[%emt 0:07:18]} 40. Qb7+ {[%emt 0:00:10]} Kg6 {[%emt 0:02:27]} 41. Qb6 {[%emt 2:06:15]} Qd5 {[%emt 2:07:39]} 42. Qb8 {[%emt 0:08:15]} Kf7 {[%emt 0:02:42]} 43. Qc7+ {[%emt 0:00:19]} Qd7 {[%emt 0:00:51]} 44. Rxc2 {[%emt 0:00:28]} Qxc7 {[%emt 0:01:36]} 45. Rxc7+ {[%emt 0:00:00]} Kf8 {[%emt 0:00:00]} 46. Rc4 {[%emt 0:00:55]} Rd3 {[%emt 0:00:00]} 47. Rxb4 {[%emt 0:00:00]} Rxe3+ {[%emt 0:00:00]} 48. Kf2 {[%emt 0:00:00]} Rc3 {[%emt 0:00:01]} 49. Rb7 {[%emt 0:01:17]} g5 {[%emt 0:00:54]} 50. g3 {[%emt 0:00:17]} gxf4 {[%emt 0:00:04]} 51. gxf4 {[%emt 0:00:00]} Rf3+ {[%emt 0:00:00]} 52. Ke2 {[%emt 0:00:42]} Rxf4 {[%emt 0:00:00]} 53. Ke3 {[%emt 0:00:51]} Rxg4 {[%emt 0:00:00]} 54. Rxh7 {[%emt 0:00:00]} Rg3+ {[%emt 0:00:00]} 55. Kxe4 {[%emt 0:00:00]} Rxb3 {[%emt 0:00:00]} 56. Kf4 {[%emt 0:01:08]} 1/2-1/2

[Event "Klatovy Open-C 2024"]
[Site "Klatovy"]
[Date "2024.07.01"]
[Round "3.5"]
[White "Macho, Miloslav"]
[Black "Novotny, Jaroslav"]
[Result "1/2-1/2"]
[ECO "D02"]
[WhiteElo "1845"]
[BlackElo "2172"]
[Annotator "TA"]
[PlyCount "74"]
[EventDate "2024.06.21"]
[EventType "swiss"]
[EventCountry "CZE"]
[SourceTitle "playchess.com"]
[Source "ChessBase"]
[SourceQuality "1"]
[TimeControl "40/7200:0"]

{[%evp 9,74,16,16,12,25,13,20,11,12,0,0,0,30,-29,32,33,35,-5,62,42,54,41,51,38,64,66,62,37,59,23,14,24,36,30,35,34,43,55,54,27,60,-16,18,-20,0,0,0,0,0,0,0,-11,-4,-1,0,-96,-12,-93,-1,-4,-4,-9,0,0,0,-11,0]} 1. Nf3 {[%emt 0:03:16]} d5 {[%emt 0:00:00]} 2. e3 {[%emt 0:00:00]} c5 {[%emt 0:00:00]} 3. d4 {[%emt 1:56:44]} e6 {[%emt 2:00:00]} 4. Bb5+ {[%emt 0:00:00]} Bd7 {[%emt 0:00:00]} 5. Be2 {[%emt 0:00:00]} Nc6 {[%emt 0:00:00]} 6. O-O {[%emt 0:00:00]} Nf6 {[%emt 0:00:00]} 7. Nbd2 {[%emt 0:00:00]} cxd4 {[%emt 0:00:00]} 8. exd4 {[%emt 0:00:00]} Bd6 {[%emt 0:00:00]} 9. c3 {[%emt 0:00:00]} O-O {[%emt 0:00:00]} 10. Re1 {[%emt 0:00:00]} Rc8 {[%emt 0:00:00]} 11. Nf1 {[%emt 0:00:00]} (11. Bd3 $142) 11... h6 {[%emt 0:00:00]} (11... Ne4 $11) 12. Bd3 $14 {[%emt 0:00:00]} Qc7 {[%emt 0:00:00]} 13. Bd2 {[%emt 0:00:00]} Bf4 {[%emt 0:00:00]} (13... Rfe8 $11) 14. Rc1 {[%emt 0:00:00]} Bxd2 {[%emt 0:00:00]} 15. Qxd2 {[%emt 0:00:00]} Rfd8 {[%emt 0:00:00][%cal Bf8d8,Bd8d6,Bd6c6][%mdl 32]} 16. Bb1 {[%emt 0:00:00]} Ne7 {[%emt 0:00:00]} 17. Ne5 {[%emt 0:00:00]} Be8 {[%emt 0:00:00]} 18. Qe2 {[%emt 0:00:00] White is more active.} Rd6 {[%emt 0:00:00]} 19. Ng4 {[%emt 0:00:00]} Nxg4 {[%emt 0:00:00]} 20. Qxg4 {[%emt 0:00:00]} Rc6 {[%emt 0:00:00]} 21. Ng3 {[%emt 0:00:00]} f5 {[%emt 0:00:00]} 22. Qf3 {[%emt 0:00:00]} b5 {[%emt 0:00:00][%cal Ob5b4]} 23. a3 {[%emt 0:00:00]} a5 {[%emt 0:00:00][%cal Ob5b4]} 24. Ne2 {[%emt 0:00:00]} g5 {[%emt 0:00:00][%cal Ob5b4] Wards off Nf4} 25. g4 {[%emt 0:00:00]} (25. Bd3 $14 Rb6 26. h4) 25... Bg6 {[%emt 0:00:00]} 26. Ng3 {[%emt 0:00:00]} (26. Qh3 {looks sharper.} Kh7 27. f4 gxf4 28. gxf5 Bxf5 29. Bxf5+ exf5 30. Nxf4 Qxf4 31. Rxe7+ Kh8 32. Qe3) 26... Rf8 {[%emt 0:00:00]} (26... fxg4 {feels hotter.} 27. Qxg4 Rf8 28. Nh5 Bxh5 29. Qxh5 Qf4) 27. gxf5 {[%emt 0:00:00]} Nxf5 {[%emt 0:00:00]} 28. Nxf5 {[%emt 0:00:00]} Bxf5 {[%emt 0:00:00]} 29. Bxf5 {[%emt 0:00:00]} Rxf5 {[%emt 0:00:00]} 30. Qg3 {[%emt 0:00:00]} Qf4 {[%emt 0:00:00]} (30... Kf7 {with more complications.} 31. Kg2 Qf4 32. Re3 h5) 31. Qxf4 {[%emt 0:00:00]} (31. Re3 {is interesting.} Kf7 32. Kg2 h5 33. Qxf4 Rxf4 34. Rce1) 31... Rxf4 $11 {[%emt 0:00:00][%mdl 4096] Endgame. KRR-KRR} 32. Re3 {[%emt 0:00:00]} (32. a4 $11) 32... Kf7 {[%emt 0:00:00]} (32... Rxd4 $17 {aiming for ...Rd2.} 33. cxd4 Rxc1+ 34. Kg2 Rc6 (34... Kf7 35. Rb3 $17)) 33. Kg2 {[%emt 0:00:00] [#]} (33. Ra1 $11 {remains equal.}) 33... b4 {[%emt 0:00:00]} 34. axb4 {[%emt 0:00:00] The position is equal.} axb4 {[%emt 0:00:00] Black wants to play ...Rg4+.} 35. Ra1 {[%emt 0:00:00]} bxc3 {[%emt 0:00:00]} 36. bxc3 {[%emt 0:00:00]} Kg6 {[%emt 0:00:00]} 37. Ra8 {[%emt 0:00:00]} Rf6 {[%emt 0:00:00] Weighted Error Value: White=0.25 (precise) /Black=0.23 (precise) .  Mistake:       	White=4     	Black=4      Inaccurate:     	White=4     	Black=4      OK:         	White=8     	Black=4      Best:        	White=1     	Black=1} 1/2-1/2

[Event "Klatovy Open-C 2024"]
[Site "Klatovy"]
[Date "2024.07.01"]
[Round "3.6"]
[White "Zednik, Zdenek"]
[Black "Novy, Jan"]
[Result "1-0"]
[ECO "A34"]
[WhiteElo "1882"]
[BlackElo "1599"]
[Annotator "NA RC"]
[PlyCount "55"]
[EventDate "2024.06.21"]
[EventType "swiss"]
[EventCountry "CZE"]
[SourceTitle "playchess.com"]
[Source "ChessBase"]
[SourceQuality "1"]
[TimeControl "40/7200:0"]

1. Nf3 {[%emt 0:00:00]} Nf6 {[%emt 2:00:00]} 2. c4 {[%emt 0:00:00]} c5 {[%emt 0:00:00]} 3. Nc3 {[%emt 0:00:00]} Nc6 {[%emt 0:00:00]} 4. g3 {[%emt 0:00:00]} d6 {[%emt 0:00:00]} 5. Bg2 {[%emt 0:00:00]} e5 {[%emt 0:00:00]} 6. e3 {[%emt 0:00:00] A34: Symmetrical English: 2 Nc3, lines with ...d5.} g6 {[%emt 0:00:00]} 7. d4 {[%emt 0:00:00]} Bh6 {[%emt 0:00:00]} 8. dxe5 {[%emt 0:00:00]} dxe5 {[%emt 0:00:00]} 9. Qxd8+ {[%emt 0:00:00]} Kxd8 {[%emt 0:00:00]} 10. O-O {[%emt 0:00:50]} Be6 {[%emt 0:00:00]} 11. Nd5 {[%emt 0:02:24]} Bxd5 {[%emt 0:00:00]} 12. cxd5 {[%emt 1:56:46]} e4 {[%emt 0:00:00]} 13. dxc6 {[%emt 0:00:00]} exf3 {[%emt 0:00:00]} 14. cxb7 {[%emt 0:00:00]} Rb8 {[%emt 0:00:00]} 15. Bxf3 {[%emt 0:00:00]} Ke7 {[%emt 0:00:00]} 16. b3 {[%emt 0:00:00]} Rhd8 {[%emt 0:00:00]} 17. Ba3 {[%emt 0:00:00]} Nd7 {[%emt 0:00:00]} 18. Rac1 {[%emt 0:00:00]} Kd6 {[%emt 0:00:00]} 19. Rfd1+ {[%emt 0:00:00]} Kc7 {[%emt 0:00:00]} 20. b4 {[%emt 0:00:00]} Bf8 {[%emt 0:00:00]} 21. bxc5 {[%emt 0:00:00]} Ne5 {[%emt 0:00:00]} 22. Bg2 {[%emt 0:00:00]} Nc6 {[%emt 0:00:00]} 23. Rxd8 $18 {[%emt 0:00:00]} (23. Rd6 $142 Na5 24. Ra6) 23... Rxd8 {[%emt 0:00:00]} 24. Bxc6 {[%emt 0:00:00]} Kxc6 {[%emt 0:00:00]} 25. Rb1 {[%emt 0:00:00]} Rb8 {[%emt 0:00:00]} 26. Kf1 {[%emt 0:00:00]} Rxb7 {[%emt 0:00:00]} 27. Rxb7 {[%emt 0:00:00]} Kxb7 {[%emt 0:00:00]} 28. c6+ {[%emt 0:00:00]} 1-0